[Event "Titled Tuesday Blitz October 26 2021"]
[White "Andreikin, Dmitry"]
[Black "Svane, Rasmus"]
[WhiteFideId "4158814"]
[BlackFideId "4657101"]
[WhiteElo "2736"]
[BlackElo "2643"]
[Result "1-0"]
[Round "11"]
[TimeControl "180+1"]
[Date "2021.10.26"]
[WhiteClock "0:00:18"]
[BlackClock "0:00:13"]

1. d4 {[%clk 0:03:00]}  Nf6 {[%clk 0:02:59]} 2. c4 {[%clk 0:02:59]}  e6 {[%clk 0:03:00]} 3. Nf3 {[%clk 0:03:00]}  d5 {[%clk 0:03:00]} 4. g3 {[%clk 0:03:00]}  Bb4+ {[%clk 0:02:59]} 5. Nbd2 {[%clk 0:03:00]}  dxc4 {[%clk 0:02:57]} 6. Bg2 {[%clk 0:03:01]}  b5 {[%clk 0:02:57]} 7. a3 {[%clk 0:02:56]}  Be7 {[%clk 0:02:50]} 8. b3 {[%clk 0:02:50]}  cxb3 {[%clk 0:02:44]} 9. Qxb3 {[%clk 0:02:49]}  a6 {[%clk 0:02:44]} 10. Ne5 {[%clk 0:02:46]}  Ra7 {[%clk 0:02:39]} 11. Bb2 {[%clk 0:02:47]}  Nfd7 {[%clk 0:02:30]} 12. Nd3 {[%clk 0:02:07]}  O-O {[%clk 0:02:23]} 13. O-O {[%clk 0:02:07]}  Nb6 {[%clk 0:02:21]} 14. Rac1 {[%clk 0:02:03]}  N8d7 {[%clk 0:02:19]} 15. Nb4 {[%clk 0:01:56]}  Nb8 {[%clk 0:02:12]} 16. Rfd1 {[%clk 0:01:47]}  Na4 {[%clk 0:02:10]} 17. Ba1 {[%clk 0:01:42]}  Bd7 {[%clk 0:01:59]} 18. d5 {[%clk 0:01:40]}  Bf6 {[%clk 0:01:41]} 19. Qe3 {[%clk 0:01:24]}  Nb6 {[%clk 0:01:21]} 20. Bxf6 {[%clk 0:01:22]}  Qxf6 {[%clk 0:01:22]} 21. d6 {[%clk 0:01:15]}  c5 {[%clk 0:00:59]} 22. Ne4 {[%clk 0:01:06]}  Qd8 {[%clk 0:00:56]} 23. Rxc5 {[%clk 0:00:42]}  a5 {[%clk 0:00:54]} 24. Nd3 {[%clk 0:00:42]}  Na6 {[%clk 0:00:52]} 25. Rh5 {[%clk 0:00:40]}  Bc6 {[%clk 0:00:27]} 26. Nf6+ {[%clk 0:00:26]}  Qxf6 {[%clk 0:00:26]} 27. Qxb6 {[%clk 0:00:25]}  Bxg2 {[%clk 0:00:21]} 28. Qxa7 {[%clk 0:00:25]}  Bf3 {[%clk 0:00:18]} 29. Re5 {[%clk 0:00:20]}  Nb8 {[%clk 0:00:12]} 30. exf3 {[%clk 0:00:18]}  Nc6 {[%clk 0:00:13]} 31. Qe3 {[%clk 0:00:18]} 1-0


[Site "https://www.chess.com"]

[Event "Titled Tuesday Blitz October 26 2021"]
[White "Baskin, Robert"]
[Black "Federzoni, Enzo"]
[WhiteFideId "24662402"]
[BlackFideId "2173301"]
[WhiteElo "2521"]
[BlackElo "1956"]
[Result "1-0"]
[Round "11"]
[TimeControl "180+1"]
[Date "2021.10.26"]
[WhiteClock "0:00:32"]
[BlackClock "0:01:03"]

1. e4 {[%clk 0:03:00]}  c5 {[%clk 0:02:59]} 2. Nf3 {[%clk 0:02:59]}  e6 {[%clk 0:03:00]} 3. d4 {[%clk 0:02:59]}  cxd4 {[%clk 0:03:00]} 4. Nxd4 {[%clk 0:02:59]}  Nf6 {[%clk 0:03:00]} 5. Nc3 {[%clk 0:02:59]}  d6 {[%clk 0:03:01]} 6. Be3 {[%clk 0:02:55]}  a6 {[%clk 0:03:00]} 7. g4 {[%clk 0:02:54]}  e5 {[%clk 0:02:50]} 8. Nf5 {[%clk 0:02:51]}  g6 {[%clk 0:02:51]} 9. g5 {[%clk 0:02:45]}  gxf5 {[%clk 0:02:51]} 10. exf5 {[%clk 0:02:44]}  d5 {[%clk 0:02:51]} 11. Qf3 {[%clk 0:02:20]}  d4 {[%clk 0:02:51]} 12. O-O-O {[%clk 0:02:15]}  Nbd7 {[%clk 0:02:51]} 13. Bxd4 {[%clk 0:02:00]}  exd4 {[%clk 0:02:52]} 14. Rxd4 {[%clk 0:01:58]}  Bc5 {[%clk 0:02:49]} 15. Rd2 {[%clk 0:01:52]}  Qc7 {[%clk 0:02:48]} 16. Bc4 {[%clk 0:01:44]}  Qc6 {[%clk 0:02:24]} 17. Re1+ {[%clk 0:01:41]}  Kd8 {[%clk 0:02:22]} 18. Qh3 {[%clk 0:01:28]}  b5 {[%clk 0:02:14]} 19. Bb3 {[%clk 0:01:26]}  Kc7 {[%clk 0:02:09]} 20. gxf6 {[%clk 0:01:25]}  Nxf6 {[%clk 0:02:07]} 21. Qg3+ {[%clk 0:01:12]}  Kb6 {[%clk 0:02:06]} 22. Nd5+ {[%clk 0:01:08]}  Ka7 {[%clk 0:01:45]} 23. Nxf6 {[%clk 0:01:06]}  Qxf6 {[%clk 0:01:45]} 24. Qc7+ {[%clk 0:01:06]}  Bb7 {[%clk 0:01:43]} 25. Qxc5+ {[%clk 0:00:55]}  Qb6 {[%clk 0:01:43]} 26. Qxb6+ {[%clk 0:00:48]}  Kxb6 {[%clk 0:01:44]} 27. Rd6+ {[%clk 0:00:49]}  Kc7 {[%clk 0:01:35]} 28. Rf6 {[%clk 0:00:49]}  Rae8 {[%clk 0:01:28]} 29. Rxf7+ {[%clk 0:00:47]}  Kb6 {[%clk 0:01:23]} 30. Re6+ {[%clk 0:00:46]}  Rxe6 {[%clk 0:01:22]} 31. fxe6 {[%clk 0:00:47]}  Bc6 {[%clk 0:01:19]} 32. f4 {[%clk 0:00:46]}  Kc5 {[%clk 0:01:18]} 33. f5 {[%clk 0:00:45]}  Kd6 {[%clk 0:01:18]} 34. f6 {[%clk 0:00:43]}  a5 {[%clk 0:01:11]} 35. e7 {[%clk 0:00:39]}  Re8 {[%clk 0:01:03]} 36. Rf8 {[%clk 0:00:37]}  a4 {[%clk 0:01:03]} 37. Bf7 {[%clk 0:00:32]} 1-0


[Site "https://www.chess.com"]

[Event "Titled Tuesday Blitz October 26 2021"]
[White "Guliev, Logman"]
[Black "Leitao, Rafael"]
[WhiteFideId "13400061"]
[BlackFideId "2101246"]
[WhiteElo "2128"]
[BlackElo "2609"]
[Result "1-0"]
[Round "11"]
[TimeControl "180+1"]
[Date "2021.10.26"]
[WhiteClock "0:00:11"]
[BlackClock "0:00:12"]

1. e4 {[%clk 0:03:00]}  c5 {[%clk 0:02:56]} 2. Nf3 {[%clk 0:02:59]}  d6 {[%clk 0:02:55]} 3. d4 {[%clk 0:02:58]}  cxd4 {[%clk 0:02:55]} 4. Nxd4 {[%clk 0:02:57]}  Nf6 {[%clk 0:02:56]} 5. Nc3 {[%clk 0:02:57]}  Nc6 {[%clk 0:02:56]} 6. Bg5 {[%clk 0:02:54]}  e6 {[%clk 0:02:56]} 7. Qd2 {[%clk 0:02:54]}  a6 {[%clk 0:02:56]} 8. O-O-O {[%clk 0:02:55]}  Be7 {[%clk 0:02:56]} 9. f4 {[%clk 0:02:47]}  Bd7 {[%clk 0:02:55]} 10. Bxf6 {[%clk 0:02:44]}  Bxf6 {[%clk 0:02:48]} 11. Nxc6 {[%clk 0:02:33]}  Bxc6 {[%clk 0:02:46]} 12. Bd3 {[%clk 0:02:20]}  Qa5 {[%clk 0:02:40]} 13. Kb1 {[%clk 0:02:11]}  Bxc3 {[%clk 0:02:37]} 14. Qxc3 {[%clk 0:02:11]}  Qxc3 {[%clk 0:02:37]} 15. bxc3 {[%clk 0:02:12]}  Ke7 {[%clk 0:02:37]} 16. Rhe1 {[%clk 0:02:11]}  Rac8 {[%clk 0:02:36]} 17. c4 {[%clk 0:02:12]}  Rhd8 {[%clk 0:02:24]} 18. Kb2 {[%clk 0:02:11]}  Be8 {[%clk 0:02:24]} 19. Kb3 {[%clk 0:02:11]}  Rc5 {[%clk 0:02:24]} 20. g4 {[%clk 0:02:10]}  Rdc8 {[%clk 0:02:24]} 21. h4 {[%clk 0:02:08]}  b5 {[%clk 0:02:22]} 22. cxb5 {[%clk 0:02:07]}  Bxb5 {[%clk 0:02:23]} 23. Re2 {[%clk 0:01:55]}  Rb8 {[%clk 0:01:50]} 24. Bxb5 {[%clk 0:01:37]}  Rbxb5+ {[%clk 0:01:47]} 25. Ka3 {[%clk 0:01:30]}  Rc3+ {[%clk 0:01:44]} 26. Ka4 {[%clk 0:01:30]}  Rc4+ {[%clk 0:01:45]} 27. Ka3 {[%clk 0:01:29]}  Kd7 {[%clk 0:01:32]} 28. Rd3 {[%clk 0:01:29]}  Kc6 {[%clk 0:01:19]} 29. Rb3 {[%clk 0:01:28]}  Kc5 {[%clk 0:01:14]} 30. Kb2 {[%clk 0:01:17]}  Rbb4 {[%clk 0:01:10]} 31. c3 {[%clk 0:01:13]}  Rb5 {[%clk 0:01:01]} 32. Kc2 {[%clk 0:01:05]}  Ra4 {[%clk 0:01:00]} 33. Kb2 {[%clk 0:01:05]}  Rba5 {[%clk 0:00:50]} 34. a3 {[%clk 0:00:57]}  Rb5 {[%clk 0:00:51]} 35. Rb4 {[%clk 0:00:54]}  a5 {[%clk 0:00:41]} 36. Rxb5+ {[%clk 0:00:31]}  Kxb5 {[%clk 0:00:42]} 37. Kb3 {[%clk 0:00:32]}  Rc4 {[%clk 0:00:42]} 38. Re3 {[%clk 0:00:28]}  a4+ {[%clk 0:00:42]} 39. Kc2 {[%clk 0:00:29]}  Rc7 {[%clk 0:00:39]} 40. Rd3 {[%clk 0:00:28]}  Rc4 {[%clk 0:00:33]} 41. Re3 {[%clk 0:00:24]}  Kc5 {[%clk 0:00:32]} 42. Kd3 {[%clk 0:00:23]}  d5 {[%clk 0:00:31]} 43. exd5 {[%clk 0:00:23]}  exd5 {[%clk 0:00:31]} 44. Rf3 {[%clk 0:00:20]}  Re4 {[%clk 0:00:31]} 45. g5 {[%clk 0:00:18]}  Re1 {[%clk 0:00:29]} 46. f5 {[%clk 0:00:17]}  Ra1 {[%clk 0:00:18]} 47. f6 {[%clk 0:00:17]}  gxf6 {[%clk 0:00:17]} 48. Rxf6 {[%clk 0:00:15]}  Rxa3 {[%clk 0:00:17]} 49. Rxf7 {[%clk 0:00:15]}  d4 {[%clk 0:00:18]} 50. Rxh7 {[%clk 0:00:12]}  Rxc3+ {[%clk 0:00:17]} 51. Kd2 {[%clk 0:00:13]}  Rg3 {[%clk 0:00:17]} 52. Ra7 {[%clk 0:00:12]}  a3 {[%clk 0:00:16]} 53. h5 {[%clk 0:00:10]}  Rxg5 {[%clk 0:00:14]} 54. Ra5+ {[%clk 0:00:10]}  Kb4 {[%clk 0:00:14]} 55. Rxg5 {[%clk 0:00:11]}  a2 {[%clk 0:00:12]} 56. Rg1 {[%clk 0:00:11]} 1-0


[Site "https://www.chess.com"]

[Event "Titled Tuesday Blitz October 26 2021"]
[White "Kamsky, Gata"]
[Black "Paltrinieri, Nicholas"]
[WhiteFideId "2000024"]
[BlackFideId "828262"]
[WhiteElo "2603"]
[BlackElo "2254"]
[Result "1-0"]
[Round "11"]
[TimeControl "180+1"]
[Date "2021.10.26"]
[WhiteClock "0:00:17"]
[BlackClock "0:00:05"]

1. b3 {[%clk 0:03:00]}  e6 {[%clk 0:02:49]} 2. Bb2 {[%clk 0:03:00]}  d5 {[%clk 0:02:49]} 3. g3 {[%clk 0:02:55]}  f5 {[%clk 0:02:48]} 4. Bg2 {[%clk 0:02:50]}  Nf6 {[%clk 0:02:48]} 5. d3 {[%clk 0:02:48]}  Be7 {[%clk 0:02:44]} 6. Nf3 {[%clk 0:02:46]}  O-O {[%clk 0:02:43]} 7. Nbd2 {[%clk 0:02:46]}  c5 {[%clk 0:02:43]} 8. O-O {[%clk 0:02:46]}  Nc6 {[%clk 0:02:43]} 9. e4 {[%clk 0:02:44]}  d4 {[%clk 0:02:38]} 10. exf5 {[%clk 0:02:43]}  exf5 {[%clk 0:02:38]} 11. Re1 {[%clk 0:02:42]}  Bd6 {[%clk 0:02:38]} 12. Nc4 {[%clk 0:02:39]}  Bc7 {[%clk 0:02:38]} 13. Nfe5 {[%clk 0:02:31]}  Nxe5 {[%clk 0:02:32]} 14. Nxe5 {[%clk 0:02:31]}  f4 {[%clk 0:02:24]} 15. c3 {[%clk 0:02:12]}  fxg3 {[%clk 0:02:22]} 16. fxg3 {[%clk 0:01:54]}  Bxe5 {[%clk 0:02:14]} 17. Rxe5 {[%clk 0:01:53]}  Ng4 {[%clk 0:02:11]} 18. Rxc5 {[%clk 0:01:38]}  Qb6 {[%clk 0:01:45]} 19. cxd4 {[%clk 0:01:33]}  Ne3 {[%clk 0:01:43]} 20. Qe2 {[%clk 0:01:20]}  Nxg2 {[%clk 0:01:43]} 21. Qxg2 {[%clk 0:01:16]}  Bg4 {[%clk 0:01:33]} 22. Re1 {[%clk 0:01:10]}  Bf3 {[%clk 0:01:28]} 23. Qc2 {[%clk 0:01:06]}  Bc6 {[%clk 0:00:59]} 24. Qc4+ {[%clk 0:01:01]}  Kh8 {[%clk 0:00:58]} 25. d5 {[%clk 0:01:01]}  Bd7 {[%clk 0:00:55]} 26. Qd4 {[%clk 0:01:00]}  Qg6 {[%clk 0:00:51]} 27. Rc7 {[%clk 0:00:58]}  Rf7 {[%clk 0:00:51]} 28. d6 {[%clk 0:00:48]}  Raf8 {[%clk 0:00:50]} 29. Rcc1 {[%clk 0:00:39]}  Bc6 {[%clk 0:00:49]} 30. Rf1 {[%clk 0:00:39]}  Kg8 {[%clk 0:00:31]} 31. b4 {[%clk 0:00:30]}  Qe6 {[%clk 0:00:24]} 32. Rxf7 {[%clk 0:00:27]}  Rxf7 {[%clk 0:00:20]} 33. b5 {[%clk 0:00:21]}  Bxb5 {[%clk 0:00:13]} 34. Qe4 {[%clk 0:00:17]}  Qxd6 {[%clk 0:00:08]} 35. Rc8+ {[%clk 0:00:17]}  Rf8 {[%clk 0:00:08]} 36. Rxf8+ {[%clk 0:00:17]}  Qxf8 {[%clk 0:00:08]} 37. Qd5+ {[%clk 0:00:17]}  Qf7 {[%clk 0:00:08]} 38. Qxb5 {[%clk 0:00:17]}  Qe7 {[%clk 0:00:05]} 39. Qc4+ {[%clk 0:00:17]}  Kh8 {[%clk 0:00:05]} 40. Qc8+ {[%clk 0:00:17]} 1-0


[Site "https://www.chess.com"]

[Event "Titled Tuesday Blitz October 26 2021"]
[White "Koellner, Ruben Gideon"]
[Black "Dobrov, Vladimir"]
[WhiteFideId "12993093"]
[BlackFideId "4136594"]
[WhiteElo "2586"]
[BlackElo "2614"]
[Result "0-1"]
[Round "11"]
[TimeControl "180+1"]
[Date "2021.10.26"]
[WhiteClock "0:00:02"]
[BlackClock "0:00:31"]

1. d4 {[%clk 0:02:28]}  Nf6 {[%clk 0:02:59]} 2. Bg5 {[%clk 0:02:27]}  c5 {[%clk 0:02:57]} 3. d5 {[%clk 0:02:26]}  Qb6 {[%clk 0:02:56]} 4. Nc3 {[%clk 0:02:26]}  g6 {[%clk 0:02:57]} 5. e4 {[%clk 0:02:25]}  Bg7 {[%clk 0:02:53]} 6. Nf3 {[%clk 0:02:25]}  Qxb2 {[%clk 0:02:51]} 7. Nb5 {[%clk 0:01:42]}  Nxe4 {[%clk 0:02:51]} 8. Rb1 {[%clk 0:01:29]}  Qxa2 {[%clk 0:02:41]} 9. d6 {[%clk 0:00:49]}  Nxg5 {[%clk 0:02:23]} 10. Nxg5 {[%clk 0:00:36]}  O-O {[%clk 0:02:21]} 11. Nc7 {[%clk 0:00:19]}  Nc6 {[%clk 0:02:12]} 12. Nxa8 {[%clk 0:00:11]}  Bc3+ {[%clk 0:02:11]} 13. Ke2 {[%clk 0:00:11]}  Nd4+ {[%clk 0:02:11]} 14. Ke3 {[%clk 0:00:11]}  Nxc2+ {[%clk 0:01:50]} 15. Kf3 {[%clk 0:00:12]}  Nd4+ {[%clk 0:01:46]} 16. Kg3 {[%clk 0:00:11]}  Qd5 {[%clk 0:01:43]} 17. Qd3 {[%clk 0:00:09]}  Qxg5+ {[%clk 0:01:41]} 18. Kh3 {[%clk 0:00:09]}  Qh5+ {[%clk 0:01:39]} 19. Kg3 {[%clk 0:00:09]}  Nf5+ {[%clk 0:01:35]} 20. Kf4 {[%clk 0:00:10]}  e5+ {[%clk 0:00:47]} 21. Ke4 {[%clk 0:00:06]}  Qg4+ {[%clk 0:00:47]} 22. Kd5 {[%clk 0:00:06]}  b6 {[%clk 0:00:45]} 23. Rxb6 {[%clk 0:00:02]}  axb6 {[%clk 0:00:41]} 24. Nxb6 {[%clk 0:00:03]}  Bb7+ {[%clk 0:00:40]} 25. Kxc5 {[%clk 0:00:04]}  Rc8+ {[%clk 0:00:34]} 26. Kb5 {[%clk 0:00:03]}  Rc5+ {[%clk 0:00:31]} 27. Kxc5 {[%clk 0:00:02]}  Qb4# {[%clk 0:00:31]} 0-1


[Site "https://www.chess.com"]

[Event "Titled Tuesday Blitz October 26 2021"]
[White "Martinez Alcantara, Jose Eduardo"]
[Black "Sorokin, Aleksey"]
[WhiteFideId "3805662"]
[BlackFideId "24176460"]
[WhiteElo "2690"]
[BlackElo "2476"]
[Result "1-0"]
[Round "11"]
[TimeControl "180+1"]
[Date "2021.10.26"]
[WhiteClock "0:00:20"]
[BlackClock "0:00:07"]

1. e4 {[%clk 0:03:00]}  c5 {[%clk 0:02:59]} 2. Nf3 {[%clk 0:03:01]}  d6 {[%clk 0:03:00]} 3. d4 {[%clk 0:03:01]}  cxd4 {[%clk 0:03:00]} 4. Nxd4 {[%clk 0:03:02]}  Nf6 {[%clk 0:03:00]} 5. Nc3 {[%clk 0:03:03]}  a6 {[%clk 0:03:00]} 6. h3 {[%clk 0:03:03]}  e5 {[%clk 0:02:59]} 7. Nb3 {[%clk 0:03:04]}  Be7 {[%clk 0:02:58]} 8. Be3 {[%clk 0:02:56]}  h6 {[%clk 0:02:57]} 9. a4 {[%clk 0:02:54]}  Be6 {[%clk 0:02:43]} 10. g4 {[%clk 0:02:41]}  Nbd7 {[%clk 0:02:41]} 11. Bg2 {[%clk 0:02:40]}  Rc8 {[%clk 0:02:37]} 12. O-O {[%clk 0:02:37]}  g5 {[%clk 0:02:29]} 13. Nd5 {[%clk 0:02:25]}  O-O {[%clk 0:02:20]} 14. Qd3 {[%clk 0:02:06]}  Bxd5 {[%clk 0:02:11]} 15. exd5 {[%clk 0:02:05]}  e4 {[%clk 0:02:12]} 16. Qd1 {[%clk 0:01:51]}  Ne5 {[%clk 0:02:02]} 17. Nd4 {[%clk 0:01:51]}  Nxd5 {[%clk 0:01:59]} 18. Nf5 {[%clk 0:01:52]}  Nxe3 {[%clk 0:01:59]} 19. fxe3 {[%clk 0:01:52]}  d5 {[%clk 0:01:50]} 20. Qxd5 {[%clk 0:01:44]}  Rc5 {[%clk 0:01:49]} 21. Qxb7 {[%clk 0:01:39]}  Ng6 {[%clk 0:01:35]} 22. Rad1 {[%clk 0:01:35]}  Qc7 {[%clk 0:01:33]} 23. Nxe7+ {[%clk 0:01:24]}  Qxe7 {[%clk 0:01:25]} 24. Qxe7 {[%clk 0:01:23]}  Nxe7 {[%clk 0:01:26]} 25. Bxe4 {[%clk 0:01:24]}  Re5 {[%clk 0:01:20]} 26. Rd4 {[%clk 0:01:19]}  Kg7 {[%clk 0:01:20]} 27. Bd3 {[%clk 0:01:06]}  Rxe3 {[%clk 0:01:18]} 28. Re4 {[%clk 0:01:06]}  Rxe4 {[%clk 0:01:11]} 29. Bxe4 {[%clk 0:01:07]}  Rd8 {[%clk 0:01:11]} 30. Bd3 {[%clk 0:00:54]}  Nd5 {[%clk 0:01:06]} 31. Bxa6 {[%clk 0:00:48]}  Nf4 {[%clk 0:01:06]} 32. b4 {[%clk 0:00:43]}  Rd2 {[%clk 0:01:01]} 33. Rf3 {[%clk 0:00:41]}  Rxc2 {[%clk 0:00:58]} 34. Rb3 {[%clk 0:00:35]}  Ra2 {[%clk 0:00:54]} 35. a5 {[%clk 0:00:33]}  Kf6 {[%clk 0:00:48]} 36. Bb7 {[%clk 0:00:29]}  Ke5 {[%clk 0:00:41]} 37. a6 {[%clk 0:00:29]}  Kd4 {[%clk 0:00:41]} 38. b5 {[%clk 0:00:30]}  Kc5 {[%clk 0:00:38]} 39. b6 {[%clk 0:00:22]}  Ne2+ {[%clk 0:00:32]} 40. Kf1 {[%clk 0:00:19]}  Nd4 {[%clk 0:00:19]} 41. Rb1 {[%clk 0:00:19]}  Nb5 {[%clk 0:00:08]} 42. a7 {[%clk 0:00:20]}  Nc3 {[%clk 0:00:08]} 43. Rc1 {[%clk 0:00:17]}  Kxb6 {[%clk 0:00:06]} 44. a8=Q {[%clk 0:00:17]}  Rxa8 {[%clk 0:00:06]} 45. Bxa8 {[%clk 0:00:18]}  Nb5 {[%clk 0:00:06]} 46. Bd5 {[%clk 0:00:18]}  Nd4 {[%clk 0:00:05]} 47. Bxf7 {[%clk 0:00:18]}  Kb5 {[%clk 0:00:06]} 48. Bd5 {[%clk 0:00:18]}  Kb4 {[%clk 0:00:06]} 49. Rc4+ {[%clk 0:00:19]}  Kb5 {[%clk 0:00:06]} 50. Rxd4 {[%clk 0:00:19]}  Kc5 {[%clk 0:00:07]} 51. Rd1 {[%clk 0:00:20]} 1-0


[Site "https://www.chess.com"]

[Event "Titled Tuesday Blitz October 26 2021"]
[White "Mikhailovsky, Vladimir"]
[Black "Shkapenko, Pavel"]
[WhiteFideId "34105414"]
[BlackFideId "4151933"]
[WhiteElo "2402"]
[BlackElo "2386"]
[Result "1-0"]
[Round "11"]
[TimeControl "180+1"]
[Date "2021.10.26"]
[WhiteClock "0:00:22"]
[BlackClock "0:00:16"]

1. d4 {[%clk 0:02:58]}  Nf6 {[%clk 0:02:58]} 2. Bf4 {[%clk 0:02:58]}  e6 {[%clk 0:02:58]} 3. e3 {[%clk 0:02:58]}  c5 {[%clk 0:02:59]} 4. c3 {[%clk 0:02:58]}  cxd4 {[%clk 0:02:59]} 5. exd4 {[%clk 0:02:57]}  b6 {[%clk 0:02:59]} 6. Be2 {[%clk 0:02:55]}  Bb7 {[%clk 0:03:00]} 7. Bf3 {[%clk 0:02:56]}  Bxf3 {[%clk 0:02:59]} 8. Qxf3 {[%clk 0:02:56]}  Nc6 {[%clk 0:03:00]} 9. Ne2 {[%clk 0:02:54]}  Be7 {[%clk 0:02:59]} 10. O-O {[%clk 0:02:53]}  O-O {[%clk 0:02:59]} 11. h3 {[%clk 0:02:49]}  b5 {[%clk 0:02:57]} 12. Nd2 {[%clk 0:02:47]}  Rc8 {[%clk 0:02:51]} 13. a3 {[%clk 0:02:45]}  a5 {[%clk 0:02:51]} 14. Bh2 {[%clk 0:02:44]}  Qb6 {[%clk 0:02:50]} 15. b4 {[%clk 0:02:42]}  a4 {[%clk 0:02:47]} 16. Rac1 {[%clk 0:02:39]}  d5 {[%clk 0:02:46]} 17. Nf4 {[%clk 0:02:38]}  Nd8 {[%clk 0:02:32]} 18. Nd3 {[%clk 0:02:35]}  Nb7 {[%clk 0:02:26]} 19. Nc5 {[%clk 0:02:29]}  Qc6 {[%clk 0:02:25]} 20. Qd3 {[%clk 0:02:26]}  Nd7 {[%clk 0:02:22]} 21. Rfe1 {[%clk 0:02:11]}  Nb6 {[%clk 0:02:21]} 22. Nxb7 {[%clk 0:02:07]}  Qxb7 {[%clk 0:02:19]} 23. Qxb5 {[%clk 0:02:07]}  Qc6 {[%clk 0:02:17]} 24. Qd3 {[%clk 0:01:59]}  Nc4 {[%clk 0:02:17]} 25. Nxc4 {[%clk 0:01:57]}  Qxc4 {[%clk 0:02:17]} 26. Qxc4 {[%clk 0:01:55]}  Rxc4 {[%clk 0:02:17]} 27. Re3 {[%clk 0:01:55]}  Rfc8 {[%clk 0:02:14]} 28. Rd3 {[%clk 0:01:50]}  Bd8 {[%clk 0:02:04]} 29. Bd6 {[%clk 0:01:45]}  f6 {[%clk 0:01:52]} 30. Bc5 {[%clk 0:01:44]}  Bc7 {[%clk 0:01:44]} 31. Kf1 {[%clk 0:01:44]}  Kf7 {[%clk 0:01:43]} 32. Ke2 {[%clk 0:01:44]}  Rb8 {[%clk 0:01:39]} 33. Kd1 {[%clk 0:01:43]}  h5 {[%clk 0:01:33]} 34. Kc2 {[%clk 0:01:43]}  Ke8 {[%clk 0:01:31]} 35. Re1 {[%clk 0:01:42]}  Kd7 {[%clk 0:01:32]} 36. Rde3 {[%clk 0:01:42]}  Re8 {[%clk 0:01:32]} 37. Kd3 {[%clk 0:01:42]}  Bf4 {[%clk 0:01:30]} 38. R3e2 {[%clk 0:01:41]}  Bc7 {[%clk 0:01:30]} 39. b5 {[%clk 0:01:41]}  e5 {[%clk 0:01:30]} 40. b6 {[%clk 0:01:39]}  e4+ {[%clk 0:01:30]} 41. Kc2 {[%clk 0:01:37]}  Bd6 {[%clk 0:01:29]} 42. Bxd6 {[%clk 0:01:23]}  Kxd6 {[%clk 0:01:30]} 43. Rb1 {[%clk 0:01:24]}  Kc6 {[%clk 0:01:24]} 44. f3 {[%clk 0:01:18]}  f5 {[%clk 0:01:23]} 45. fxe4 {[%clk 0:01:17]}  dxe4 {[%clk 0:01:23]} 46. Rf1 {[%clk 0:01:08]}  g6 {[%clk 0:01:21]} 47. g4 {[%clk 0:01:09]}  hxg4 {[%clk 0:01:20]} 48. hxg4 {[%clk 0:01:10]}  Rh8 {[%clk 0:01:09]} 49. gxf5 {[%clk 0:01:07]}  Rh3 {[%clk 0:01:09]} 50. Rxe4 {[%clk 0:00:37]}  Rcxc3+ {[%clk 0:01:04]} 51. Kd2 {[%clk 0:00:38]}  Rhd3+ {[%clk 0:01:01]} 52. Ke2 {[%clk 0:00:38]}  gxf5 {[%clk 0:01:01]} 53. Rxf5 {[%clk 0:00:38]}  Kxb6 {[%clk 0:00:49]} 54. Re6+ {[%clk 0:00:30]}  Kc7 {[%clk 0:00:49]} 55. Rf7+ {[%clk 0:00:30]}  Kd8 {[%clk 0:00:50]} 56. Ra6 {[%clk 0:00:25]}  Re3+ {[%clk 0:00:48]} 57. Kf2 {[%clk 0:00:25]}  Ke8 {[%clk 0:00:45]} 58. Rh7 {[%clk 0:00:20]}  Rf3+ {[%clk 0:00:45]} 59. Kg2 {[%clk 0:00:20]}  Rf7 {[%clk 0:00:17]} 60. Ra8+ {[%clk 0:00:20]}  Ke7 {[%clk 0:00:18]} 61. Ra7+ {[%clk 0:00:21]}  Ke6 {[%clk 0:00:18]} 62. Raxf7 {[%clk 0:00:21]}  Rxa3 {[%clk 0:00:19]} 63. Rf3 {[%clk 0:00:21]}  Ra2+ {[%clk 0:00:18]} 64. Kg3 {[%clk 0:00:21]}  Kd5 {[%clk 0:00:17]} 65. Ra7 {[%clk 0:00:21]}  Kxd4 {[%clk 0:00:16]} 66. Rxa4+ {[%clk 0:00:22]} 1-0


[Site "https://www.chess.com"]

[Event "Titled Tuesday Blitz October 26 2021"]
[White "Obolenskikh, Dmitry"]
[Black "Gontcharov, Vladislav"]
[WhiteFideId "4156013"]
[BlackFideId "4123492"]
[WhiteElo "2541"]
[BlackElo "2503"]
[Result "1-0"]
[Round "11"]
[TimeControl "180+1"]
[Date "2021.10.26"]
[WhiteClock "0:01:19"]
[BlackClock "0:00:16"]

1. Nf3 {[%clk 0:03:00]}  Nf6 {[%clk 0:02:52]} 2. c4 {[%clk 0:03:00]}  g6 {[%clk 0:02:52]} 3. Nc3 {[%clk 0:03:00]}  Bg7 {[%clk 0:02:51]} 4. e4 {[%clk 0:03:00]}  d6 {[%clk 0:02:51]} 5. d4 {[%clk 0:03:00]}  O-O {[%clk 0:02:52]} 6. h3 {[%clk 0:03:01]}  e5 {[%clk 0:02:48]} 7. dxe5 {[%clk 0:03:00]}  dxe5 {[%clk 0:02:48]} 8. Qxd8 {[%clk 0:03:01]}  Rxd8 {[%clk 0:02:47]} 9. Bg5 {[%clk 0:03:00]}  c6 {[%clk 0:02:36]} 10. Nxe5 {[%clk 0:03:00]}  Re8 {[%clk 0:02:35]} 11. O-O-O {[%clk 0:02:58]}  h6 {[%clk 0:02:28]} 12. Bf4 {[%clk 0:02:50]}  Na6 {[%clk 0:02:18]} 13. Nf3 {[%clk 0:02:27]}  Nxe4 {[%clk 0:02:11]} 14. Nxe4 {[%clk 0:02:27]}  Rxe4 {[%clk 0:02:11]} 15. Rd8+ {[%clk 0:02:27]}  Kh7 {[%clk 0:02:11]} 16. Be3 {[%clk 0:02:26]}  Bf6 {[%clk 0:02:05]} 17. Rd2 {[%clk 0:02:24]}  Re8 {[%clk 0:01:54]} 18. Bd3 {[%clk 0:02:20]}  Be6 {[%clk 0:01:54]} 19. a3 {[%clk 0:02:12]}  Nb8 {[%clk 0:01:33]} 20. h4 {[%clk 0:02:05]}  h5 {[%clk 0:01:28]} 21. Ng5+ {[%clk 0:02:04]}  Bxg5 {[%clk 0:01:27]} 22. hxg5 {[%clk 0:02:00]}  Kg8 {[%clk 0:01:25]} 23. Bd4 {[%clk 0:01:53]}  Nd7 {[%clk 0:01:24]} 24. f3 {[%clk 0:01:47]}  Nb6 {[%clk 0:01:23]} 25. b3 {[%clk 0:01:45]}  c5 {[%clk 0:00:59]} 26. Bxc5 {[%clk 0:01:39]}  Rad8 {[%clk 0:00:55]} 27. Be4 {[%clk 0:01:34]}  Rxd2 {[%clk 0:00:53]} 28. Kxd2 {[%clk 0:01:35]}  Nd7 {[%clk 0:00:53]} 29. Bd4 {[%clk 0:01:32]}  Rd8 {[%clk 0:00:52]} 30. Kc3 {[%clk 0:01:32]}  b6 {[%clk 0:00:50]} 31. g4 {[%clk 0:01:32]}  f5 {[%clk 0:00:40]} 32. gxf6 {[%clk 0:01:22]}  hxg4 {[%clk 0:00:39]} 33. fxg4 {[%clk 0:01:22]}  Bxg4 {[%clk 0:00:38]} 34. Bxg6 {[%clk 0:01:23]}  Be6 {[%clk 0:00:16]} 35. Rh8+ {[%clk 0:01:19]} 1-0


[Site "https://www.chess.com"]

[Event "Titled Tuesday Blitz October 26 2021"]
[White "Piesik, Piotr"]
[Black "Lazavik, Denis"]
[WhiteFideId "1136194"]
[BlackFideId "13515110"]
[WhiteElo "2336"]
[BlackElo "2436"]
[Result "1-0"]
[Round "11"]
[TimeControl "180+1"]
[Date "2021.10.26"]
[WhiteClock "0:01:47"]
[BlackClock "0:01:35"]

1. Nf3 {[%clk 0:03:00]}  Nf6 {[%clk 0:03:00]} 2. g3 {[%clk 0:02:58]}  g6 {[%clk 0:03:00]} 3. Bg2 {[%clk 0:02:58]}  Bg7 {[%clk 0:03:01]} 4. O-O {[%clk 0:02:59]}  O-O {[%clk 0:03:01]} 5. d4 {[%clk 0:02:59]}  d5 {[%clk 0:03:01]} 6. c4 {[%clk 0:02:59]}  c6 {[%clk 0:03:01]} 7. Nc3 {[%clk 0:02:58]}  dxc4 {[%clk 0:03:01]} 8. a4 {[%clk 0:02:58]}  Na6 {[%clk 0:02:49]} 9. e3 {[%clk 0:02:55]}  Nb4 {[%clk 0:02:40]} 10. Ne5 {[%clk 0:02:54]}  Bf5 {[%clk 0:02:35]} 11. e4 {[%clk 0:02:54]}  Be6 {[%clk 0:02:30]} 12. Be3 {[%clk 0:02:54]}  Nd7 {[%clk 0:02:29]} 13. Nf3 {[%clk 0:02:37]}  h6 {[%clk 0:02:18]} 14. Qe2 {[%clk 0:02:34]}  Qa5 {[%clk 0:02:15]} 15. Ne1 {[%clk 0:02:06]}  Nb6 {[%clk 0:02:09]} 16. f4 {[%clk 0:02:04]}  Nd3 {[%clk 0:02:06]} 17. f5 {[%clk 0:01:49]}  gxf5 {[%clk 0:01:34]} 18. Qh5 {[%clk 0:01:48]}  Bd5 {[%clk 0:01:35]} 19. exd5 {[%clk 0:01:47]} 1-0


[Site "https://www.chess.com"]